bitfinex/quotes_ETHUSD_20220227
["timestamp","ask_amount","ask_price","bid_price","bid_amount"]
[1645966305573,0.141304,2836.7,2836.5,0.0931912]
[1645966305772,0.88205,2837.1,2836.5,0.0931912]
[1645966305977,1.76414,2837.1,2836.3,4.31438667]
[1645966306172,0.3,2837.0,2836.3,4.31438667]
[1645966306376,1.38026767,2837.0,2836.3,4.31438667]
[1645966306573,1.68026767,2837.0,2836.3,4.31438667]
[1645966306975,1.68026767,2837.0,2836.6,1.14145652]
[1645966307173,1.68026767,2837.0,2836.3,4.52578895]
[1645966307374,1.68026767,2837.0,2836.3,4.31438667]
[1645966307774,1.48204,2837.0,2836.3,4.31438667]
[1645966308212,1.48204,2837.0,2836.6,1.20645497]
[1645966308720,1.48204,2837.0,2836.3,4.52578895]
[1645966308721,0.36566156,2836.5,2836.3,4.52578895]
[1645966308914,0.36566156,2836.5,2836.3,4.31438667]
[1645966309513,0.50696456,2836.5,2836.4,0.21140228]
[1645966309712,0.50696456,2836.5,2836.4,1.12588333]
[1645966309913,0.36566156,2836.5,2836.4,1.12588333]
[1645966310214,0.36566156,2836.5,2836.4,0.12588333]
[1645966311221,0.36566156,2836.5,2836.3,4.3181553]
[1645966311667,0.36566156,2836.5,2836.3,4.31438667]
[1645966313174,0.19746565,2836.4,2836.3,4.31438667]
[1645966314176,0.14746565,2836.4,2836.3,4.31438667]
[1645966315176,0.14746565,2836.4,2835.2,0.21140228]
[1645966315413,0.88235,2836.2,2835.2,0.21140228]
[1645966315712,1.68939447,2836.2,2835.2,0.21140228]
[1645966315916,0.14746565,2836.1,2835.1,4.883]
[1645966316118,1.91240565,2836.1,2835.1,5.96377471]
[1645966316318,1.91240565,2836.1,2835.1,4.883]
[1645966316517,1.09722196,2835.9,2835.1,4.883]
[1645966316717,1.09722196,2835.9,2835.5,0.00628798]
[1645966316718,0.3,2835.8,2835.5,0.00628798]
[1645966316914,0.46376349,2835.8,2835.5,0.00628798]
[1645966317114,11.23376349,2835.8,2835.5,0.00628798]
[1645966317315,11.23376349,2835.8,2835.1,4.883]
[1645966317316,6.5,2835.5,2835.1,4.883]
[1645966317515,7.38274,2835.5,2835.1,4.883]
[1645966317715,0.21864398,2835.3,2835.1,4.883]
[1645966317914,1.10135398,2835.3,2835.1,4.883]
[1645966318119,0.88271,2835.3,2835.1,4.883]
[1645966318318,1.18271,2835.3,2835.1,4.833]
[1645966318520,1.35567797,2835.3,2835.1,4.833]
[1645966319166,0.88271,2835.3,2835.1,4.83708994]
[1645966319466,0.14746565,2835.2,2835.1,4.83708994]
[1645966320072,0.14746565,2835.2,2835.1,8.54440228]
[1645966320268,0.14746565,2835.2,2835.1,6.19908158]
[1645966320874,0.14746565,2835.2,2835.1,5.9876793]
[1645966321069,0.14746565,2835.2,2835.1,4.833]
[1645966321671,0.14746565,2835.2,2835.1,5.04440228]
[1645966322068,0.14746565,2835.5,2835.1,6.18637994]
[1645966322269,0.14746565,2835.5,2835.4,0.21140228]
[1645966325123,0.14746565,2835.9,2835.4,0.21140228]
[1645966325323,0.141337,2835.7,2835.4,0.21140228]
[1645966325523,0.14746565,2835.9,2835.3,0.0062882]
[1645966325722,0.14746565,2835.9,2835.6,0.21140228]
[1645966326122,0.14746565,2835.9,2835.7,1.17345684]
[1645966326521,0.14746565,2835.9,2835.6,0.21140228]
[1645966328081,1.02987565,2835.9,2835.4,0.00588825]
[1645966328482,1.02987565,2835.9,2835.1,4.833]
[1645966328684,1.20916786,2835.9,2835.1,4.833]
[1645966328984,0.14746565,2836.2,2835.8,0.21140228]
[1645966329386,0.14746565,2836.2,2835.4,3.85978818]
[1645966329585,0.14746565,2836.2,2836.0,0.21140228]
[1645966329781,0.14746565,2836.2,2836.1,1.08910296]
[1645966329982,0.14746565,2836.2,2835.8,0.21140228]
[1645966330282,0.14746565,2836.2,2835.6,0.21140228]
[1645966330520,0.14746565,2836.2,2835.4,7.08712291]
[1645966330723,0.14746565,2836.2,2835.4,3.58712291]
[1645966330922,0.14746565,2836.2,2835.7,0.21140228]
[1645966331123,0.14746565,2836.2,2835.9,1.02026135]
[1645966331324,0.14746565,2836.2,2835.7,0.21140228]
[1645966331521,4.53563616,2836.4,2835.5,0.21140228]
[1645966331721,1.33563616,2836.4,2835.5,0.21140228]
[1645966332120,1.52922484,2836.4,2835.5,0.21140228]
[1645966332320,1.52922484,2836.4,2835.7,1.3059485]
[1645966332321,0.3,2836.3,2835.7,1.3059485]
[1645966332524,1.38399686,2836.3,2835.5,0.21140228]
[1645966332720,0.88232,2836.2,2835.5,0.21140228]
[1645966333153,1.18232,2836.2,2835.5,0.21140228]
[1645966333926,1.76478,2836.1,2835.5,0.21140228]
[1645966334575,0.14746565,2836.0,2835.5,0.21140228]
[1645966334974,1.04066567,2835.9,2835.5,0.21140228]
[1645966335172,1.04066567,2835.9,2835.4,0.00592676]
[1645966335673,0.3,2835.8,2835.1,4.833]
[1645966335872,0.3,2835.8,2835.1,5.04440228]
[1645966336074,0.3,2835.8,2835.4,0.00592665]
[1645966336677,0.88237,2835.9,2835.4,0.00592665]
[1645966336876,0.44746565,2836.0,2835.1,5.9829523]
[1645966337080,0.141347,2835.8,2835.5,0.21140228]
[1645966337276,0.44746565,2836.0,2835.5,0.21140228]
[1645966337678,0.44746565,2836.0,2835.6,1.07055479]
[1645966338124,0.14746565,2836.0,2835.5,0.21140228]
[1645966338323,0.14746565,2835.7,2835.4,0.21140228]
[1645966339025,0.14746565,2835.7,2835.1,5.04440228]
[1645966339226,0.14746565,2835.7,2835.5,1.0193679]
[1645966339525,0.00130352,2835.5,2835.2,0.21140228]
[1645966340227,0.00130352,2835.5,2835.1,4.833]
[1645966340627,0.00130352,2835.5,2835.2,0.21140228]
[1645966340826,0.00130352,2835.5,2835.2,0.21769168]
[1645966341427,0.14746565,2835.4,2835.2,0.21769168]
[1645966341664,0.14746565,2835.4,2835.2,0.21140228]
[1645966342065,0.14746565,2835.4,2835.2,0.21769168]
[1645966342867,0.14746565,2835.4,2835.2,0.21140228]
[1645966343272,0.14746565,2835.4,2835.2,0.21769175]
[1645966343674,0.14746565,2835.4,2835.2,0.00628947]
[1645966344472,0.14746565,2835.4,2835.2,0.00480134]
[1645966345077,0.28881765,2835.4,2835.2,0.00480134]
[1645966345418,0.14746565,2835.4,2835.1,4.833]
[1645966347225,0.14746565,2835.4,2835.3,0.21140228]
[1645966347428,6.565e-05,2835.4,2835.3,0.21140228]
[1645966347625,0.00130352,2835.5,2835.3,0.21140228]
[1645966348028,0.00130352,2835.5,2835.4,1.4099703]
[1645966350079,0.00130352,2835.5,2835.1,4.833]
[1645966350271,0.00130352,2835.5,2835.1,5.04440228]
[1645966350476,0.8824,2835.9,2835.5,0.00018414]
[1645966350672,0.15199636,2836.0,2835.5,0.00018414]
[1645966350872,0.3,2836.0,2835.5,0.00018414]
[1645966351078,3.5,2836.0,2835.5,0.00018414]
[1645966351375,0.88259,2835.6,2835.5,0.00018414]
[1645966354220,0.88245,2835.7,2835.5,0.00018414]
[1645966354422,0.53894306,2836.0,2835.5,0.00018414]
[1645966354622,2.21452251,2836.2,2835.5,0.00018414]
[1645966354823,2.22050044,2836.3,2835.6,0.21140228]
[1645966355023,2.21452251,2836.3,2836.0,1.37913053]
[1645966355227,0.00597807,2836.3,2836.0,1.37913053]
[1645966355623,0.34555055,2836.5,2836.0,1.37913053]
[1645966356122,0.32163963,2836.5,2836.0,1.37913053]
[1645966356323,0.32163963,2836.5,2836.1,4.5971]
[1645966357569,0.00599155,2836.4,2836.1,4.5971]
[1645966358070,4.2870836,2836.5,2836.1,4.5971]
[1645966358671,3.31293391,2836.4,2836.1,4.5971]
[1645966358872,1.38019439,2836.3,2836.1,4.5971]
[1645966359471,1.38019439,2836.3,2836.1,2.31331789]
[1645966359472,3.5947169,2836.3,2836.1,2.31331789]
[1645966359674,1.76484,2836.1,2835.5,0.00018414]
[1645966359873,0.8826,2835.9,2835.5,0.00018414]
[1645966360073,0.51756333,2836.1,2835.5,0.00018414]
[1645966360272,2.37065581,2836.3,2835.7,0.21140228]
[1645966360536,0.3,2836.3,2835.5,0.00018414]
[1645966360730,0.62163963,2836.5,2835.9,0.21140228]
[1645966361036,0.80213566,2836.5,2835.9,0.21140228]
[1645966361228,0.623839,2836.5,2835.9,0.21140228]
[1645966361431,0.8189102,2836.5,2835.9,0.21140228]
[1645966361627,0.623839,2836.5,2835.9,0.21140228]
[1645966361830,0.80014237,2836.5,2835.9,0.21140228]
[1645966362029,0.623839,2836.5,2835.7,1.24172136]
[1645966362229,0.62163963,2836.5,2835.7,1.24172136]
[1645966362431,0.62792673,2836.5,2835.9,0.00628845]
[1645966362829,0.83838909,2836.5,2835.9,0.00628845]
[1645966363235,0.88232,2836.4,2835.9,0.00628845]
[1645966363439,0.88232,2836.4,2835.5,0.00018414]
[1645966363633,0.88232,2836.4,2835.9,0.00628845]
[1645966363834,0.88231,2836.2,2835.9,0.00628845]
[1645966364665,0.88231,2836.2,2835.5,0.00018414]
[1645966364865,0.88231,2836.2,2835.9,0.00628839]
[1645966365670,0.88231,2836.2,2835.5,0.21158642]
[1645966366067,0.88231,2836.2,2835.9,0.00628839]
[1645966366268,1.48231,2836.2,2835.9,0.00628839]
[1645966366869,1.48231,2836.2,2835.5,0.00018414]
[1645966367069,1.66799118,2836.2,2835.5,0.00018414]
[1645966367270,0.88244,2836.0,2835.9,0.00628839]
[1645966368029,1.023771,2836.0,2835.9,0.00628839]
[1645966368229,1.023771,2836.0,2835.5,0.00018414]
[1645966368230,0.88244,2835.9,2835.5,0.00018414]
[1645966368426,0.88244,2835.9,2835.8,0.00628853]
[1645966369324,0.88244,2835.9,2835.5,0.00018414]
[1645966369525,1.76492,2835.9,2835.7,0.00628868]
[1645966370133,2.55723127,2836.5,2835.8,0.21140228]
[1645966370326,2.55723127,2836.5,2835.7,0.00628868]
[1645966370327,0.32792646,2836.5,2835.7,0.00628868]
[1645966370628,0.32792646,2836.5,2836.1,0.21140228]
[1645966370629,0.32163963,2836.5,2836.1,0.21140228]
[1645966370831,0.32792669,2836.5,2836.1,0.21140228]
[1645966371428,0.62792669,2836.5,2836.1,0.21140228]
[1645966371871,0.62792669,2836.5,2835.7,0.21140228]
[1645966371872,1.50391963,2836.5,2835.7,0.21140228]
[1645966372172,4.0895665,2836.5,2835.5,0.00018414]
[1645966372370,3.9482535,2836.5,2835.5,0.00018414]
[1645966372570,0.88245,2836.2,2835.5,0.00018414]
[1645966372769,1.18245,2836.2,2835.5,0.00018414]
[1645966372974,0.88245,2836.2,2835.9,1.20263377]
[1645966373178,0.32383714,2836.5,2836.1,0.21140228]
[1645966374076,0.32383714,2836.5,2835.5,0.14108414]
[1645966374275,0.32163963,2836.5,2835.5,0.14108414]
[1645966374477,0.32792949,2836.5,2835.9,0.21769348]
[1645966375438,0.8823,2836.4,2835.9,0.21140228]
[1645966375823,3.11160481,2836.4,2835.9,0.21769341]
[1645966376622,3.11160481,2836.4,2835.9,0.21140228]
[1645966378829,0.8823,2836.4,2835.9,0.21140228]
[1645966379029,4.00845682,2836.5,2835.9,0.21140228]
[1645966379270,4.01474923,2836.5,2835.9,0.21769604]
[1645966379670,4.15607023,2836.5,2835.9,0.21769604]
[1645966380072,4.01474923,2836.5,2835.9,0.21769604]
[1645966380274,4.01474923,2836.5,2835.5,3.50018414]
[1645966380275,0.47915201,2836.5,2835.5,3.50018414]
[1645966380474,0.47915201,2836.5,2836.3,0.21140228]
[1645966380475,0.32793208,2836.5,2836.3,0.21140228]
[1645966380973,0.32793208,2836.5,2836.1,0.21140228]
[1645966381378,0.32163963,2836.5,2836.1,1.54010557]
[1645966381674,0.32793216,2836.5,2836.1,0.21140228]
[1645966382175,0.32793216,2836.5,2835.9,0.21769616]
[1645966382176,2.85723697,2836.5,2835.9,0.21769616]
[1645966382374,3.02524818,2836.5,2835.9,0.21769616]
[1645966382575,2.22930481,2836.4,2835.9,0.21140228]
[1645966382773,2.22930481,2836.4,2835.9,0.21769608]
[1645966383223,3.3252481,2836.5,2835.9,0.21769608]
[1645966383621,2.37062481,2836.4,2835.9,0.21769608]
[1645966383825,0.8824,2836.2,2835.6,0.1409]
[1645966384023,2.22930481,2836.0,2835.9,0.0062938]
[1645966384424,2.52930481,2836.0,2835.9,0.00317451]
[1645966384621,2.70246255,2836.0,2835.9,0.00317451]
[1645966385024,2.64771,2835.9,2835.6,0.1409]
[1645966385224,0.88257,2835.8,2835.6,0.1409]
[1645966385823,4.86464011,2835.9,2835.6,0.1409]
[1645966385824,0.88255,2835.9,2835.6,0.1409]
[1645966386026,0.32163963,2836.5,2835.7,0.21140228]
[1645966386226,0.32163963,2836.5,2836.1,0.21140228]
[1645966386431,0.32163963,2836.5,2835.6,0.1409]
[1645966386666,0.32163963,2836.5,2835.6,0.35230228]
[1645966386868,0.32163963,2836.5,2835.6,1.66591476]
[1645966387167,0.32163963,2836.5,2836.0,0.21140228]
[1645966387368,0.62163963,2836.5,2835.8,0.21140228]
[1645966387570,1.64527063,2836.5,2835.8,0.21140228]
[1645966387767,0.88859348,2836.4,2835.8,0.21769715]
[1645966388173,0.88859348,2836.4,2836.0,0.21140228]
[1645966388574,0.8823,2836.4,2836.0,0.21140228]
[1645966388774,0.5,2836.2,2835.6,1.45451248]
[1645966388978,0.5,2836.2,2836.1,0.21140228]
[1645966389175,0.005907,2836.4,2836.2,1.43146737]
[1645966389379,0.005907,2836.4,2836.3,0.21140228]
[1645966389976,0.46295063,2836.5,2836.3,0.21140228]
[1645966391024,0.46295063,2836.5,2835.8,4.8814]
[1645966391225,0.46515089,2836.5,2835.8,5.09280228]
[1645966391630,0.32383989,2836.5,2835.8,5.09280228]
[1645966392023,0.32383989,2836.5,2835.9,1.14306841]
[1645966392224,0.32163963,2836.5,2836.1,0.21140228]
[1645966392424,0.00220019,2836.4,2836.1,0.21140228]
[1645966392826,0.00220019,2836.4,2835.9,1.14306841]
[1645966393030,0.00220019,2836.4,2836.0,0.3526]
[1645966393232,0.00220019,2836.4,2836.3,0.21140228]
[1645966393429,0.32163963,2836.5,2836.4,1.01328751]
[1645966393629,0.32163963,2836.5,2836.3,0.21140228]
[1645966393829,0.32163963,2836.5,2836.0,3.0864]
[1645966393830,0.00219836,2836.4,2836.1,0.21140228]
[1645966394031,0.00219836,2836.4,2836.0,2.1784]
[1645966394271,0.30219836,2836.4,2836.0,2.1784]
[1645966394465,0.64698461,2836.4,2836.0,2.1784]
[1645966394665,0.64478625,2836.4,2836.0,2.38980228]
[1645966394869,0.50567361,2836.4,2836.0,0.21140228]
[1645966395067,0.30219836,2836.4,2836.0,0.21140228]
[1645966395269,0.00219836,2836.4,2836.0,0.21140228]
[1645966395870,0.32163963,2836.5,2836.0,0.21140228]
[1645966396074,0.00219836,2836.4,2836.0,0.21140228]
[1645966396874,0.00219836,2836.4,2836.1,0.21140228]
[1645966397071,0.32163963,2836.5,2835.8,4.8814]
[1645966397274,0.32163963,2836.5,2836.4,0.21140228]
[1645966397673,0.32163963,2836.5,2836.3,0.21140228]
[1645966397930,0.32163963,2836.5,2836.2,0.21140228]
[1645966398326,0.32163963,2836.5,2836.4,0.21140228]
[1645966398327,0.46293663,2836.5,2836.4,0.21140228]
[1645966398526,0.4692335,2836.5,2836.4,0.21140228]
[1645966398727,0.3279365,2836.5,2836.4,0.21140228]
[1645966399532,0.32163963,2836.5,2836.4,0.21140228]
[1645966399727,0.32163963,2836.5,2836.4,0.06140228]
[1645966407227,0.00633842,2836.6,2836.5,7.8526]
[1645966407423,0.00633842,2836.6,2836.5,18.66533901]
[1645966407624,1.40337144,2838.4,2836.7,11.1226]
[1645966407825,1.40337144,2838.4,2837.8,0.06140228]
[1645966407826,20.00102,2838.0,2837.8,0.06140228]
[1645966408032,1.40337144,2838.4,2837.8,0.07437939]
[1645966408232,1.40337144,2838.4,2838.0,0.06140228]
[1645966408430,3.4538517,2838.3,2837.8,0.06140228]
[1645966408629,1.40337144,2838.4,2837.8,0.06140228]
[1645966408830,2.28504144,2838.4,2837.7,0.06140228]
[1645966409200,1.42966249,2837.9,2836.9,0.5]
[1645966409396,4.51427648,2838.4,2837.2,0.00423505]
[1645966409397,0.88183,2838.0,2837.2,0.00423505]
[1645966409595,0.88183,2838.0,2837.3,0.06140228]
[1645966409997,3.63260648,2838.4,2837.8,0.06140228]
[1645966410301,3.63260648,2838.4,2836.9,3.5]
[1645966410302,0.01735036,2837.7,2837.4,0.06140228]
[1645966410700,5.036e-05,2837.7,2837.6,0.06140228]
[1645966410900,0.02534281,2838.2,2837.7,2.5]
[1645966411110,0.25,2838.5,2838.1,0.06140228]
[1645966411300,6.0775307,2838.7,2837.9,0.06140228]
[1645966411600,6.0775307,2838.7,2837.3,1.1441]
[1645966411601,2.22923504,2838.5,2837.3,1.1441]
[1645966411798,0.88178,2838.1,2837.3,1.1441]
[1645966411998,0.88178,2838.1,2837.2,0.06140228]
[1645966412195,0.88176,2837.9,2837.4,0.06140228]
[1645966412400,0.88176,2837.9,2837.1,1.43348865]
[1645966412595,0.88176,2837.9,2837.4,0.06140228]
[1645966413039,1.18176,2837.9,2837.1,0.06140228]
[1645966413237,0.00096,2837.8,2837.0,5.9649]
[1645966413439,8.43955772,2837.8,2836.5,7.11230228]
[1645966413637,0.88215,2837.2,2836.5,7.0509]
[1645966413837,1.08050888,2837.2,2836.5,7.0509]
[1645966414037,0.3,2837.1,2836.5,7.0509]
[1645966414236,0.49025199,2837.1,2836.5,7.0509]
[1645966414635,0.19025199,2837.1,2836.5,7.0509]
[1645966414840,0.50008656,2837.0,2836.5,7.0509]
[1645966415044,1.38223656,2837.0,2836.5,7.0509]
[1645966415236,1.68223656,2837.0,2836.5,7.0509]
[1645966415436,1.48215,2837.0,2836.7,0.00639435]
[1645966415839,0.88214,2836.9,2836.7,0.00639435]
[1645966416341,2.64645,2836.9,2836.5,7.0509]
[1645966416545,6.14674,2836.8,2836.7,0.00639435]
[1645966416783,6.14674,2836.8,2836.5,7.0509]
[1645966416784,5.0,2836.7,2836.5,7.0509]
[1645966417388,6.0,2836.7,2836.5,7.0509]
[1645966417594,3.246825,2836.8,2836.5,7.0509]
[1645966417786,0.88224,2836.7,2836.5,7.0509]
[1645966420293,0.88224,2836.7,2836.5,7.0572899]
[1645966421121,0.88224,2836.7,2836.5,7.0509]
[1645966421525,3.73584996,2837.1,2836.5,7.0572899]
[1645966421526,0.00096,2837.1,2836.5,7.0572899]
[1645966421722,0.00096,2837.2,2836.7,0.06140228]
[1645966421922,0.23673896,2837.3,2836.7,0.06140228]
[1645966422222,0.09546096,2837.3,2836.7,0.06140228]
[1645966422822,0.97744096,2837.3,2836.7,0.06140228]
[1645966423329,0.88198,2837.0,2836.7,0.06140228]
[1645966423525,0.88198,2837.0,2836.6,0.06140228]
[1645966423928,0.88198,2837.0,2836.6,0.06779225]
[1645966424166,0.88198,2837.0,2836.6,0.00638997]
[1645966424568,1.18198,2837.0,2836.6,0.00638997]
[1645966424768,1.18198,2837.0,2836.7,0.06140228]
[1645966424969,1.48198,2837.0,2836.7,0.06140228]
[1645966425172,1.48198,2837.0,2836.6,0.00638982]
[1645966425368,1.18198,2837.0,2836.6,0.00638982]
[1645966425568,1.18198,2837.0,2836.7,0.06140228]
[1645966425768,1.323258,2837.0,2836.7,0.06140228]
[1645966425969,1.18198,2837.0,2836.7,0.06140228]
[1645966426169,1.18198,2837.0,2836.5,7.0509]
[1645966426372,1.18198,2837.0,2836.6,0.00638986]
[1645966426568,1.18198,2837.0,2836.8,0.06140228]
[1645966427570,0.88198,2837.0,2836.8,0.06140228]
[1645966428234,2.64645,2836.9,2836.6,0.00638989]
[1645966428431,2.64645,2836.9,2836.5,7.0509]
[1645966428632,2.64645,2836.9,2836.6,0.00638989]
[1645966429033,3.82862,2836.9,2836.6,0.00638989]
[1645966429638,3.82862,2836.9,2836.5,7.0509]
[1645966429639,8.43859772,2836.8,2836.5,7.0509]
[1645966429834,15.45008108,2836.8,2836.6,0.00638978]
[1645966430033,15.45008108,2836.8,2836.6,0.00458431]
[1645966430034,0.18008108,2836.7,2836.6,0.00458431]
[1645966430443,3.0,2836.5,2836.0,0.02556375]
[1645966430634,1.17540675,2836.4,2836.0,0.02556375]
[1645966430835,1.17540675,2836.4,2835.6,1.2129]
[1645966431034,0.8824,2836.2,2835.6,1.2129]
[1645966431233,1.1824,2836.2,2835.5,0.06158642]
[1645966431436,1.3702019,2836.2,2835.5,0.06158642]
[1645966431671,0.88241,2836.1,2835.5,0.06158642]
[1645966432274,1.76482,2836.1,2835.7,0.00639104]
[1645966432876,3.5,2836.0,2835.7,0.00639104]
[1645966433083,3.95714055,2836.0,2835.7,0.00639104]
[1645966433277,0.88258,2835.9,2835.5,0.00018414]
[1645966433478,0.88258,2835.9,2835.8,0.00639096]
[1645966434078,4.38258,2835.9,2835.8,0.00639096]
[1645966434279,1.88258,2835.9,2835.8,0.00639096]
[1645966434480,5.38258,2835.9,2835.5,0.00018414]
[1645966434679,5.38258,2835.9,2835.7,0.00639104]
[1645966434680,4.38258,2835.9,2835.7,0.00639104]
[1645966434880,5.38258,2835.9,2835.7,0.00639104]
[1645966435081,3.5,2835.8,2835.7,0.00639104]
[1645966435282,10.77,2835.6,2835.5,0.00018414]
[1645966435529,7.5,2835.5,2834.2,0.00195812]
[1645966435731,17.21849,2835.6,2834.2,0.00195812]
[1645966435732,1.18278,2835.1,2834.2,0.00195812]
[1645966435930,1.36475816,2835.1,2834.2,0.00195812]
[1645966436126,1.36475816,2835.1,2834.2,0.0633604]
[1645966436727,1.36475816,2835.1,2834.3,1.34540558]
[1645966436929,1.18278,2835.1,2834.3,1.40680786]
[1645966437128,1.18278,2835.1,2834.5,0.00639515]
[1645966437328,0.88273,2834.9,2834.5,0.00639515]
[1645966437531,1.7655,2834.9,2834.8,0.06140228]
[1645966437829,1.7655,2834.9,2834.5,0.00639515]
[1645966438036,1.7655,2834.9,2834.2,0.06140228]
[1645966438240,0.88277,2834.7,2834.2,0.06140228]
[1645966438435,0.88277,2834.7,2834.3,0.02558321]
[1645966438836,0.88273,2834.9,2834.6,0.06140228]
[1645966439039,1.76555,2835.2,2834.3,0.02558321]
[1645966439040,0.88257,2835.2,2834.3,0.02558321]
[1645966439284,0.88257,2835.2,2835.1,0.06140228]
[1645966439485,0.88257,2835.2,2834.7,0.06140228]
[1645966440085,0.88257,2835.2,2834.6,1.28575703]
[1645966440484,0.88257,2835.2,2834.6,1.27936204]
[1645966440685,0.88257,2835.2,2835.1,0.06140228]
[1645966441088,0.88257,2835.2,2835.1,1.43226283]
[1645966441288,0.00211434,2835.4,2835.1,1.43226283]
[1645966441489,0.00211434,2835.4,2835.3,0.06140228]
[1645966441689,1.76485,2836.2,2835.3,0.06140228]
[1645966441888,2.64779,2836.4,2835.5,0.06140228]
[1645966442087,2.64779,2836.4,2835.2,3.5]
[1645966442291,2.64779,2836.4,2835.7,0.06140228]
[1645966442688,2.64779,2836.4,2835.1,0.0063903]
[1645966442977,1.76461,2836.4,2836.3,0.06140228]
[1645966443164,2.01544,2836.9,2836.3,0.06140228]
[1645966443367,0.18931634,2837.0,2836.3,0.06140228]
[1645966443569,0.00096,2837.2,2835.5,0.3526]
[1645966443765,0.00096,2836.9,2836.2,1.33376374]
[1645966443969,0.88215,2836.9,2836.8,0.06140228]
[1645966444267,1.9485118,2837.2,2836.6,0.06140228]
[1645966444268,0.01733978,2836.7,2836.6,0.06140228]
[1645966444470,0.01733978,2836.7,2836.0,0.04273901]
[1645966444471,0.00212678,2836.5,2836.0,0.04273901]
[1645966444667,0.00212678,2836.5,2836.0,0.10414129]
[1645966444868,0.00212678,2836.5,2836.0,0.06140228]
[1645966445067,0.00212678,2836.5,2835.7,5.9072]
[1645966445068,1.90794178,2836.5,2835.7,5.96860228]
[1645966445270,0.8823,2836.4,2835.7,2.83040228]
[1645966445471,0.88442678,2836.4,2835.7,2.83040228]
[1645966445667,0.88442678,2836.4,2835.7,0.06140228]
[1645966445668,0.3,2836.3,2835.7,0.06140228]
[1645966445867,0.3,2836.3,2835.8,0.06140228]
[1645966446071,1.18442678,2836.4,2836.1,0.06140228]
[1645966446072,0.88442678,2836.4,2836.1,0.06140228]
[1645966446268,0.88442678,2836.4,2836.3,0.06140228]
[1645966446269,0.00212678,2836.4,2836.3,0.06140228]
[1645966446473,1.78171978,2836.7,2835.9,0.06140228]
[1645966446689,0.0064003,2836.4,2835.9,0.06140228]
[1645966446888,0.0064003,2836.4,2835.2,3.5083612]
[1645966447090,0.0064003,2836.4,2836.3,1.22698718]
[1645966447290,0.0064003,2836.4,2836.3,0.06140228]
[1645966447690,0.88222,2836.6,2836.3,0.06140228]
[1645966448097,0.00640015,2836.5,2836.3,0.06140228]
[1645966448294,0.88223,2836.4,2836.3,0.06140228]
[1645966448703,0.00640015,2836.5,2836.3,0.06140228]
[1645966448900,0.01733978,2836.7,2836.3,0.06140228]
[1645966449103,0.01733978,2836.7,2836.5,0.06140228]
[1645966449701,0.01733978,2836.7,2836.6,1.57337775]
[1645966449702,3.978e-05,2836.7,2836.6,1.57337775]
[1645966449899,3.978e-05,2836.7,2836.6,1.22077775]
[1645966450098,3.978e-05,2836.7,2836.5,0.06140228]
[1645966450948,0.00096,2837.7,2837.5,1.35803532]
[1645966451149,0.02558965,2837.8,2837.6,0.06140228]
[1645966451352,0.8817,2838.2,2837.6,0.06140228]
[1645966451353,0.00096,2837.7,2837.6,0.06140228]
[1645966451548,0.00096,2838.1,2837.6,0.06140228]
[1645966451748,0.8817,2838.2,2836.9,3.8526]
[1645966451950,0.00096,2838.1,2837.9,0.06140228]
[1645966452152,0.00096,2838.2,2837.9,0.06140228]
[1645966452355,0.88163,2838.4,2837.9,0.06140228]
[1645966452553,0.88163,2838.4,2836.9,3.8526]
[1645966452554,0.00096,2838.6,2838.3,0.06140228]
[1645966452751,0.00096,2838.6,2838.0,0.02997316]
[1645966452752,0.00211651,2838.2,2838.1,2.5]
[1645966452951,0.11260475,2838.9,2838.1,3.56140228]
[1645966452952,0.25379775,2838.9,2838.1,3.56140228]
[1645966453154,0.25379775,2838.9,2838.8,0.06140228]
[1645966453351,0.88135,2839.2,2838.8,0.06140228]
[1645966453558,0.88135,2839.2,2838.2,0.01210214]
[1645966453559,3.5,2839.1,2838.2,0.01210214]
[1645966453754,5.71472868,2839.1,2838.1,7.10820228]
[1645966453956,5.71472868,2839.1,2837.8,0.06140228]
[1645966453957,7.0,2838.8,2837.8,0.06140228]
[1645966454200,0.88156,2838.9,2837.8,0.06140228]
[1645966454201,0.88186,2838.5,2837.8,0.06140228]
[1645966454600,0.88186,2838.5,2836.8,0.25]
[1645966454601,0.88196,2838.0,2836.8,0.25]
[1645966454801,1.18196,2838.0,2836.8,0.25]
[1645966455001,1.66204108,2838.0,2836.8,0.25]
[1645966455202,1.66204108,2838.0,2837.0,0.06140228]
[1645966455405,1.66204108,2838.0,2836.8,0.31140228]
[1645966455705,0.88196,2837.7,2836.8,0.31140228]
[1645966455905,0.88196,2837.7,2836.8,0.25]
[1645966456106,2.21472868,2838.4,2836.8,0.25]
[1645966456107,0.64038426,2838.5,2837.6,0.06140228]
[1645966456411,0.64038426,2838.5,2836.8,0.25]
[1645966456412,2.0,2838.8,2837.7,0.06140228]
[1645966456613,2.0,2838.8,2838.6,0.06140228]
[1645966456614,0.00096,2838.7,2838.6,0.06140228]
[1645966456908,7.36,2838.9,2838.1,0.06140228]
[1645966456909,0.15851361,2838.5,2838.1,0.06140228]
[1645966457103,0.15851361,2838.5,2838.0,0.06140228]
[1645966457305,0.01730061,2838.5,2838.0,0.06140228]
[1645966457505,0.01730061,2838.5,2837.6,0.06140228]
[1645966457706,2.64524,2838.4,2837.4,3.38700228]
[1645966457935,1.76373,2838.2,2837.5,3.5]
[1645966458137,1.76373,2838.2,2837.7,0.06140228]
[1645966458341,0.30096,2838.1,2837.3,0.06140228]
[1645966458538,0.3,2838.1,2837.6,0.06140228]
[1645966459037,0.7,2837.8,2836.8,3.75]
[1645966459241,0.7,2837.8,2837.2,0.06140228]
[1645966459438,0.70096,2837.8,2836.8,0.25]
[1645966459639,0.70096,2837.8,2837.7,0.06140228]
[1645966459640,0.7,2837.8,2837.7,0.06140228]
[1645966461144,0.7,2837.8,2837.7,1.26632132]
[1645966461442,7.36096,2838.5,2837.7,2.81339645]
[1645966461443,0.00096,2838.5,2837.7,2.81339645]
[1645966461699,0.43419192,2839.0,2838.3,0.0038321]
[1645966461700,0.00096,2838.6,2838.3,0.0038321]
[1645966461884,0.00210367,2838.7,2837.3,2.88940801]
[1645966462080,0.88159,2838.6,2837.3,0.1409]
[1645966462279,0.00096,2838.5,2837.2,0.1409]
[1645966462485,3.50096,2838.5,2837.2,0.1409]
[1645966462681,3.5,2838.5,2837.2,0.1409]
[1645966462882,0.18104108,2838.4,2836.7,4.8449]
[1645966463084,0.88188,2838.0,2836.7,4.8449]
[1645966463289,0.88192,2837.7,2836.7,4.8449]
[1645966463483,0.3,2837.6,2837.0,0.00640451]
[1645966464083,0.88288,2837.7,2837.0,0.00640451]